fUSD/lending_fUSD_20240919
["ID","MTS","AMOUNT","RATE_DAILY","PERIOD"]
[338581153,1726747132943,402.46,0.0001246,2]
[338581154,1726747137787,1500.0,0.00013,90]
[338581155,1726747144983,3306.21,0.00012503,2]
[338581156,1726747178455,-150.0,0.00015006,120]
[338581157,1726747178481,-150.0,0.00015391,120]
[338581158,1726747178508,-150.0,0.00015414,120]
[338581159,1726747178533,-150.0,0.00015703,120]
[338581160,1726747178559,-150.0,0.0001602,120]
[338581161,1726747178584,-150.0,0.00016278,120]
[338581162,1726747178609,-100.0,0.00016345,120]
[338581163,1726747204866,-50.0,0.00016345,120]
[338581164,1726747204896,-150.0,0.00016506,120]
[338581165,1726747204924,-150.0,0.00016524,120]
[338581166,1726747204955,-150.0,0.00016802,120]
[338581167,1726747236544,196.49,0.00012501,2]
[338581168,1726747276569,421.86233158,0.00012699,2]
[338581169,1726747279841,691.62,0.00012547,2]
[338581170,1726747279999,155.69,0.00010959,2]
[338581171,1726747343414,301.21,0.00012655,2]
[338581172,1726747343646,301.21,0.00012659,2]
[338581173,1726747343870,301.21,0.00012662,2]
[338581174,1726747344097,301.21,0.00012665,2]
[338581175,1726747344326,301.21,0.00012669,2]
[338581176,1726747344541,301.21,0.00012672,2]
[338581177,1726747344743,301.21,0.00012676,2]
[338581178,1726747345017,301.21,0.00012679,2]
[338581179,1726747345211,301.21,0.00012682,2]
[338581180,1726747345552,301.21,0.00012686,2]
[338581181,1726747345694,301.21,0.00012689,2]
[338581182,1726747345961,301.21,0.00012692,2]
[338581183,1726747346613,301.21,0.00012696,2]
[338581184,1726747346827,301.21,0.00012699,2]
[338581185,1726747347053,301.21,0.00012702,2]
[338581186,1726747347402,301.21,0.00012706,2]
[338581187,1726747347635,301.21,0.00012709,2]
[338581188,1726747347830,301.21,0.00012712,2]
[338581189,1726747348044,301.21,0.00012716,2]
[338581190,1726747348296,301.21,0.00012719,2]
[338581191,1726747360030,250.0,0.00012653,2]
[338581192,1726747371989,275.43,0.00012653,2]
[338581194,1726747409768,171.91718399,0.000127,2]
[338581196,1726747417349,250.0,0.00012583,2]
[338581197,1726747440480,150.33,0.0001246,2]
[338581198,1726747506920,416.21,0.0001047,2]
[338581199,1726747507276,416.21,0.00012734,2]
[338581204,1726747548255,267.86,0.00013918,30]
[338581205,1726747585288,188.84,0.00012415,2]
[338581206,1726747647109,300.0,0.000125,4]
[338581207,1726747649222,700.0,0.000126,4]
[338581208,1726747651319,1000.0,0.000127,4]
[338581209,1726747651845,200.0,0.00012413,2]
[338581210,1726747653243,728.43,0.000126,2]
[338581226,1726747784940,421.86233158,0.00012743,2]
[338581239,1726747832336,-150.0,0.00012799,2]
[338581240,1726747832347,-509.5205,0.000128,2]
[338581241,1726747832357,-11.01000017,0.000128,2]
[338581242,1726747832394,-3157.803,0.000128,2]
[338581243,1726747832406,-554.04576987,0.000128,2]
[338581244,1726747832419,-975.46552809,0.000128,2]
[338581245,1726747832447,-765.29022052,0.000128,2]
[338581246,1726747832503,-448.12958754,0.000128,2]
[338581247,1726747832559,-813.35519381,0.000128,2]
[338581248,1726747832568,-32628.6003,0.000128,2]
[338581249,1726747832578,-12367.50353407,0.000128,2]
[338581250,1726747832589,-584.59550704,0.000128,2]
[338581251,1726747832600,-315.40449296,0.000128,2]
[338581252,1726747832612,-231732.49646593,0.000128,2]
[338581253,1726747832621,-1000.0,0.000128,2]
[338581254,1726747832631,-1400.0,0.000128,4]
[338581255,1726747832640,-338.45240326,0.000128,2]
[338581256,1726747832658,-331.77,0.00012881,2]
[338581257,1726747832669,-12710.9902282,0.0001289,2]
[338581258,1726747832678,-175.895,0.00012899,2]
[338581259,1726747832687,-369.86034629,0.00012899,2]
[338581260,1726747832697,-1382.0,0.000129,2]
[338581261,1726747832706,-689.2802,0.000129,2]
[338581262,1726747832716,-39014.5023,0.000129,2]
[338581263,1726747832725,-100000.0,0.000129,2]
[338581264,1726747832735,-175.18324583,0.000129,2]
[338581265,1726747832744,-1700.0,0.000129,4]
[338581266,1726747832753,-471.43,0.000129,2]
[338581267,1726747832763,-4942.09,0.000129,2]
[338581268,1726747832773,-499.99,0.000129,2]
[338581269,1726747832786,-287.81,0.000129,2]
[338581270,1726747832796,-1228.28677326,0.000129,2]
[338581271,1726747832805,-262.63293722,0.00012973,2]
[338581272,1726747832815,-510.12053839,0.00012973,2]
[338581273,1726747832825,-26546.20779396,0.0001298,2]
[338581274,1726747832834,-150.99,0.00013,2]
[338581275,1726747832845,-55574.62149249,0.00013,2]
[338581278,1726747833228,-5118.58595711,0.00013,2]
[338581279,1726747833567,83508.8916,0.000127,2]
[338581329,1726747838340,-1285.24018095,0.00013,2]
[338581330,1726747838352,-2082.2186989,0.00013,2]
[338581331,1726747838363,-2583.58712451,0.00013,2]
[338581332,1726747838376,-532.95656466,0.00013,2]
[338581333,1726747838397,-730.51169881,0.00013,2]
[338581334,1726747838409,-1071.04712071,0.00013,2]
[338581335,1726747838421,-1254.48211922,0.00013,2]
[338581336,1726747838433,-667.76472037,0.00013,2]
[338581337,1726747838445,-326.82220256,0.00013,2]
[338581338,1726747838456,-1826.71288376,0.00013,2]
[338581339,1726747838468,-41512.04812837,0.00013,2]
[338581340,1726747838477,-57086.8659226,0.00013,2]
[338581341,1726747838488,-57191.2410705,0.00013,2]
[338581342,1726747838499,-290.305015,0.00013,2]
[338581343,1726747838510,-640.66395802,0.00013,2]
[338581344,1726747838521,-481.27860106,0.00013,2]
[338581345,1726747838533,-2248.25259335,0.00013,2]
[338581346,1726747838544,-8284.18896675,0.00013,2]
[338581347,1726747838555,-631.81334908,0.00013,2]
[338581348,1726747838566,-641.81412885,0.00013,2]
[338581349,1726747838581,-3212.85344129,0.00013,2]
[338581350,1726747838592,-13816.91598433,0.00013,2]
[338581351,1726747838622,-888.03309248,0.00013,2]
[338581352,1726747838676,-1109.76612253,0.00013,2]
[338581353,1726747838688,-389.54524828,0.00013,2]
[338581360,1726747840313,-781.81587229,0.00013,2]
[338581361,1726747840372,-3550469.49144112,0.00013,2]
[338581362,1726747840384,-2000.0,0.00013,2]
[338581363,1726747840394,-200.0,0.00013,2]
[338581364,1726747840404,-204.22227369,0.00013,2]
[338581365,1726747840414,-2418.83135228,0.00013,2]
[338581366,1726747840425,-482.6,0.00013,2]
[338581367,1726747840434,-200.0,0.0001313,2]
[338581368,1726747840443,-1500.0,0.00013387,2]
[338581369,1726747840453,-1015.37368057,0.00013403,2]
[338581370,1726747840464,-1500.0,0.0001343,2]
[338581371,1726747840474,-150.0,0.00013489,2]
[338581372,1726747840484,-150.0,0.0001352,2]
[338581373,1726747840493,-150.0,0.0001352,2]
[338581374,1726747840502,-1500.0,0.00013521,2]
[338581375,1726747840512,-150.0,0.00013524,2]
[338581376,1726747840521,-150.0,0.00013532,2]
[338581377,1726747840531,-150.0,0.00013533,2]
[338581378,1726747840542,-150.0,0.00013549,2]
[338581379,1726747840552,-150.0,0.00013559,2]
[338581380,1726747840562,-5138.1737,0.00013562,2]
[338581381,1726747840571,-150.0,0.00013577,2]
[338581382,1726747840581,-150.0,0.00013578,2]
[338581383,1726747840591,-150.0,0.00013593,2]
[338581384,1726747840600,-150.0,0.00013596,2]
[338581385,1726747840610,-150.0,0.00013606,2]
[338581386,1726747840619,-150.0,0.00013609,2]
[338581387,1726747840629,-150.0,0.00013633,2]
[338581388,1726747840639,-150.0,0.00013645,2]
[338581389,1726747840648,-150.0,0.00013658,2]
[338581390,1726747840658,-150.0,0.00013659,2]
[338581391,1726747840667,-150.0,0.00013674,2]
[338581392,1726747840677,-150.0,0.00013693,2]
[338581393,1726747840687,-150.0,0.00013695,2]
[338581394,1726747840696,-173564.65,0.00013699,2]
[338581395,1726747840706,-991.81,0.00013699,2]
[338581396,1726747840715,-150.0,0.00013706,2]
[338581397,1726747840725,-150.0,0.00013718,2]
[338581398,1726747840735,-150.0,0.00013727,2]
[338581399,1726747840746,-150.0,0.00013749,2]
[338581400,1726747840756,-150.0,0.00013789,2]
[338581401,1726747840766,-268505.143029,0.000138,3]
[338581402,1726747840775,-150.0,0.00013802,2]
[338581403,1726747840785,-150.0,0.00013802,2]
[338581404,1726747840795,-1167.838362,0.0001383,2]
[338581405,1726747840804,-42010.2952024,0.000139,3]
[338581406,1726747840814,-1228.28677326,0.000139,2]
[338581407,1726747840823,-600.0,0.00013904,2]
[338581408,1726747840832,-500.0,0.00013904,2]
[338581409,1726747840841,-200.0,0.00013964,2]
[338581410,1726747840851,-157.387914,0.00013973,2]
[338581411,1726747840860,-368.32,0.00014013,2]
[338581412,1726747840870,-1000.0,0.00014018,2]
[338581413,1726747840879,-303.91,0.00014178,2]
[338581414,1726747840888,-167.28,0.00014297,2]
[338581415,1726747840897,-991.81,0.00014384,2]
[338581416,1726747840906,-300.0,0.000144,5]
[338581417,1726747840916,-331.77,0.00014492,2]
[338581418,1726747840925,-300.0,0.000145,5]
[338581420,1726747840934,-438.223,0.000145,2]
[338581422,1726747840944,-500.0,0.00014518,2]
[338581424,1726747840953,-216.366417,0.0001452,2]
[338581426,1726747840962,-907.063,0.00014524,2]
[338581428,1726747840973,-150.0,0.00014524,2]
[338581431,1726747840982,-204.0,0.0001454,2]
[338581433,1726747840992,-162.11181118,0.00014575,2]
[338581435,1726747841002,-122836.26152303,0.00014599,2]
[338581437,1726747841012,-303.46,0.000146,2]
[338581439,1726747841022,-1010.96,0.000146,2]
[338581441,1726747841031,-300.0,0.000146,5]
[338581443,1726747841042,-201.0,0.0001468,2]
[338581445,1726747841051,-204.0,0.0001468,2]
[338581446,1726747841061,-1262.0,0.00014698,2]
[338581448,1726747841070,-294.03,0.00014698,2]
[338581450,1726747841079,-810.0,0.00014698,2]
[338581452,1726747841088,-158.383,0.00014698,2]
[338581454,1726747841097,-932.0,0.00014698,2]
[338581456,1726747841106,-300.0,0.000147,5]
[338581458,1726747841115,-201.0,0.0001475,2]
[338581460,1726747841125,-162.11181118,0.00014767,2]
[338581462,1726747841134,-58836.11956094,0.0001479,2]
[338581464,1726747841143,-500.0,0.00014792,2]
[338581466,1726747841153,-216.366417,0.00014794,2]
[338581468,1726747841162,-500.0,0.00014794,2]
[338581469,1726747841171,-500.0,0.00014794,2]
[338581471,1726747841180,-500.0,0.00014794,2]
[338581473,1726747841189,-500.0,0.00014794,2]
[338581475,1726747841199,-500.0,0.00014794,2]
[338581477,1726747841208,-500.0,0.00014794,2]
[338581479,1726747841217,-500.0,0.00014794,2]
[338581481,1726747841226,-500.0,0.00014794,2]
[338581483,1726747841235,-500.0,0.00014794,2]
[338581485,1726747841244,-500.0,0.00014794,2]
[338581486,1726747841254,-500.0,0.00014794,2]
[338581488,1726747841264,-500.0,0.00014794,2]
[338581490,1726747841273,-500.0,0.00014794,2]
[338581492,1726747841283,-500.0,0.00014794,2]
[338581494,1726747841294,-500.0,0.00014794,2]
[338581496,1726747841303,-500.0,0.00014794,2]
[338581499,1726747841316,-500.0,0.00014794,2]
[338581500,1726747841325,-500.0,0.00014794,2]
[338581503,1726747841336,-648.5,0.00014794,2]
[338581505,1726747841346,-209.11900488,0.00014794,2]
[338581506,1726747841356,-500.0,0.00014794,2]
[338581508,1726747841365,-500.0,0.00014794,2]
[338581510,1726747841374,-500.0,0.00014794,2]
[338581512,1726747841387,-500.0,0.00014794,2]
[338581514,1726747841396,-500.0,0.00014794,2]
[338581516,1726747841406,-500.0,0.00014794,2]
[338581518,1726747841415,-500.0,0.00014794,2]
[338581520,1726747841426,-500.0,0.00014794,2]
[338581522,1726747841435,-500.0,0.00014794,2]
[338581524,1726747841444,-500.0,0.00014794,2]
[338581526,1726747841454,-500.0,0.00014794,2]
[338581528,1726747841464,-500.0,0.00014794,2]
[338581530,1726747841473,-248.73542896,0.00014794,2]
[338581532,1726747841482,-881.9,0.00014794,2]
[338581534,1726747841491,-881.9,0.00014794,2]
[338581536,1726747841500,-881.9,0.00014794,2]
[338581537,1726747841510,-881.9,0.00014794,2]
[338581539,1726747841519,-881.9,0.00014794,2]
[338581541,1726747841530,-881.9,0.00014794,2]
[338581543,1726747841541,-881.9,0.00014794,2]
[338581545,1726747841552,-881.9,0.00014794,2]
[338581547,1726747841561,-881.9,0.00014794,2]
[338581549,1726747841570,-881.9,0.00014794,2]
[338581551,1726747841579,-881.9,0.00014794,2]
[338581553,1726747841589,-881.9,0.00014794,2]
[338581555,1726747841598,-881.9,0.00014794,2]
[338581556,1726747841607,-881.9,0.00014794,2]
[338581558,1726747841616,-881.9,0.00014794,2]
[338581560,1726747841625,-881.9,0.00014794,2]
[338581562,1726747841634,-881.9,0.00014794,2]
[338581564,1726747841643,-881.9,0.00014794,2]
[338581566,1726747841652,-601.04,0.00014794,2]
[338581568,1726747841662,-601.04,0.00014794,2]
[338581569,1726747841671,-601.04,0.00014794,2]
[338581571,1726747841680,-601.04,0.00014794,2]
[338581573,1726747841690,-601.04,0.00014794,2]
[338581575,1726747841699,-601.04,0.00014794,2]
[338581577,1726747841708,-601.04,0.00014794,2]
[338581579,1726747841719,-601.04,0.00014794,2]
[338581581,1726747841728,-601.04,0.00014794,2]
[338581583,1726747841738,-601.04,0.00014794,2]
[338581585,1726747841747,-601.04,0.00014794,2]
[338581587,1726747841758,-601.04,0.00014794,2]
[338581589,1726747841768,-601.04,0.00014794,2]
[338581591,1726747841778,-601.04,0.00014794,2]
[338581593,1726747841787,-601.04,0.00014794,2]
[338581595,1726747841797,-601.04,0.00014794,2]
[338581597,1726747841806,-601.04,0.00014794,2]
[338581599,1726747841816,-601.04,0.00014794,2]
[338581601,1726747841826,-601.04,0.00014794,2]
[338581603,1726747841835,-500.0,0.00014794,2]
[338581605,1726747841845,-500.0,0.00014794,2]
[338581607,1726747841854,-1302.93,0.00014794,2]
[338581609,1726747841864,-1302.93,0.00014794,2]
[338581611,1726747841873,-1302.93,0.00014794,2]
[338581613,1726747841882,-1302.93,0.00014794,2]
[338581615,1726747841892,-1302.93,0.00014794,2]
[338581617,1726747841901,-1302.93,0.00014794,2]
[338581619,1726747841910,-1302.93,0.00014794,2]
[338581621,1726747841920,-1302.93,0.00014794,2]
[338581623,1726747841929,-1302.93,0.00014794,2]
[338581625,1726747841939,-1302.93,0.00014794,2]
[338581627,1726747841948,-1302.93,0.00014794,2]
[338581629,1726747841958,-1302.93,0.00014794,2]
[338581631,1726747841967,-1302.93,0.00014794,2]
[338581633,1726747841977,-1302.93,0.00014794,2]
[338581635,1726747841986,-1302.93,0.00014794,2]
[338581637,1726747841995,-1302.93,0.00014794,2]
[338581639,1726747842004,-1302.93,0.00014794,2]
[338581641,1726747842013,-1302.93,0.00014794,2]
[338581643,1726747842022,-1302.93,0.00014794,2]
[338581645,1726747842031,-292.21599281,0.00014794,2]
[338581647,1726747842040,-1211.84,0.00014794,2]
[338581649,1726747842049,-1211.84,0.00014794,2]
[338581651,1726747842058,-1211.84,0.00014794,2]
[338581653,1726747842068,-1211.84,0.00014794,2]
[338581655,1726747842077,-1211.84,0.00014794,2]
[338581657,1726747842086,-1211.84,0.00014794,2]
[338581659,1726747842096,-1211.84,0.00014794,2]
[338581661,1726747842105,-1211.84,0.00014794,2]
[338581663,1726747842114,-1211.84,0.00014794,2]
[338581665,1726747842123,-1211.84,0.00014794,2]
[338581667,1726747842133,-1211.84,0.00014794,2]
[338581669,1726747842142,-1211.84,0.00014794,2]
[338581671,1726747842151,-1211.84,0.00014794,2]
[338581673,1726747842160,-1211.84,0.00014794,2]
[338581675,1726747842169,-1211.84,0.00014794,2]
[338581677,1726747842179,-1211.84,0.00014794,2]
[338581679,1726747842187,-1211.84,0.00014794,2]
[338581681,1726747842197,-1211.84,0.00014794,2]
[338581683,1726747842207,-1211.84,0.00014794,2]
[338581685,1726747842217,-1211.84,0.00014794,2]
[338581687,1726747842226,-1211.84,0.00014794,2]
[338581689,1726747842235,-1211.84,0.00014794,2]
[338581691,1726747842245,-1211.84,0.00014794,2]
[338581693,1726747842254,-1211.84,0.00014794,2]
[338581695,1726747842264,-537.31,0.00014794,2]
[338581696,1726747842273,-537.31,0.00014794,2]
[338581698,1726747842282,-537.31,0.00014794,2]
[338581700,1726747842292,-537.31,0.00014794,2]
[338581702,1726747842302,-537.31,0.00014794,2]
[338581704,1726747842311,-537.31,0.00014794,2]
[338581706,1726747842320,-537.31,0.00014794,2]
[338581709,1726747842330,-537.31,0.00014794,2]
[338581710,1726747842340,-537.31,0.00014794,2]
[338581712,1726747842349,-537.31,0.00014794,2]
[338581714,1726747842358,-537.31,0.00014794,2]
[338581716,1726747842368,-537.31,0.00014794,2]
[338581718,1726747842380,-537.31,0.00014794,2]
[338581721,1726747842393,-537.31,0.00014794,2]
[338581723,1726747842403,-537.31,0.00014794,2]
[338581725,1726747842412,-537.31,0.00014794,2]
[338581727,1726747842422,-537.31,0.00014794,2]
[338581729,1726747842432,-537.31,0.00014794,2]
[338581731,1726747842442,-537.31,0.00014794,2]
[338581733,1726747842453,-854.1,0.00014794,2]
[338581734,1726747842462,-854.1,0.00014794,2]
[338581736,1726747842471,-854.1,0.00014794,2]
[338581738,1726747842481,-854.1,0.00014794,2]
[338581740,1726747842490,-854.1,0.00014794,2]
[338581742,1726747842500,-854.1,0.00014794,2]
[338581744,1726747842510,-854.1,0.00014794,2]
[338581746,1726747842519,-854.1,0.00014794,2]
[338581748,1726747842528,-854.1,0.00014794,2]
[338581750,1726747842538,-854.1,0.00014794,2]
[338581752,1726747842548,-854.1,0.00014794,2]
[338581754,1726747842558,-854.1,0.00014794,2]
[338581756,1726747842567,-854.1,0.00014794,2]
[338581758,1726747842576,-854.1,0.00014794,2]
[338581760,1726747842586,-854.1,0.00014794,2]
[338581762,1726747842595,-854.1,0.00014794,2]
[338581764,1726747842604,-854.1,0.00014794,2]
[338581766,1726747842614,-854.1,0.00014794,2]
[338581768,1726747842623,-854.1,0.00014794,2]
[338581770,1726747842632,-854.1,0.00014794,2]
[338581772,1726747842642,-854.1,0.00014794,2]
[338581774,1726747842651,-854.1,0.00014794,2]
[338581776,1726747842661,-854.1,0.00014794,2]
[338581778,1726747842672,-854.22,0.00014794,2]
[338581780,1726747842682,-2086.73,0.00014794,2]
[338581782,1726747842691,-2086.73,0.00014794,2]
[338581784,1726747842701,-2086.73,0.00014794,2]
[338581786,1726747842711,-2086.73,0.00014794,2]
[338581788,1726747842720,-2086.73,0.00014794,2]
[338581790,1726747842730,-2086.73,0.00014794,2]
[338581792,1726747842739,-2086.73,0.00014794,2]
[338581794,1726747842749,-2086.73,0.00014794,2]
[338581796,1726747842758,-2086.73,0.00014794,2]
[338581797,1726747842767,-2086.73,0.00014794,2]
[338581799,1726747842777,-2086.73,0.00014794,2]
[338581801,1726747842790,-2086.73,0.00014794,2]
[338581804,1726747842804,-2086.73,0.00014794,2]
[338581805,1726747842814,-2086.73,0.00014794,2]
[338581807,1726747842824,-2086.73,0.00014794,2]
[338581810,1726747842833,-2086.73,0.00014794,2]
[338581812,1726747842843,-2086.73,0.00014794,2]
[338581814,1726747842853,-2086.73,0.00014794,2]
[338581816,1726747842863,-2086.73,0.00014794,2]
[338581818,1726747842872,-709.59,0.00014794,2]
[338581820,1726747842881,-709.59,0.00014794,2]
[338581822,1726747842890,-709.59,0.00014794,2]
[338581824,1726747842899,-709.59,0.00014794,2]
[338581826,1726747842909,-709.59,0.00014794,2]
[338581828,1726747842918,-709.59,0.00014794,2]
[338581829,1726747842928,-709.59,0.00014794,2]
[338581831,1726747842937,-709.59,0.00014794,2]
[338581833,1726747842947,-709.59,0.00014794,2]
[338581835,1726747842956,-709.59,0.00014794,2]
[338581837,1726747842965,-709.59,0.00014794,2]
[338581839,1726747842974,-709.59,0.00014794,2]
[338581841,1726747842983,-709.59,0.00014794,2]
[338581843,1726747842993,-709.59,0.00014794,2]
[338581845,1726747843002,-709.59,0.00014794,2]
[338581847,1726747843011,-709.59,0.00014794,2]
[338581849,1726747843021,-709.59,0.00014794,2]
[338581851,1726747843031,-709.59,0.00014794,2]
[338581853,1726747843045,-709.59,0.00014794,2]
[338581855,1726747843054,-709.59,0.00014794,2]
[338581857,1726747843064,-709.59,0.00014794,2]
[338581859,1726747843074,-709.59,0.00014794,2]
[338581861,1726747843083,-709.59,0.00014794,2]
[338581863,1726747843092,-709.75,0.00014794,2]
[338581865,1726747843101,-3671.15,0.00014794,2]
[338581867,1726747843110,-3671.15,0.00014794,2]
[338581869,1726747843120,-3671.15,0.00014794,2]
[338581871,1726747843130,-3671.15,0.00014794,2]
[338581873,1726747843140,-3671.15,0.00014794,2]
[338581875,1726747843149,-3671.15,0.00014794,2]
[338581877,1726747843159,-3671.15,0.00014794,2]
[338581880,1726747843169,-3671.15,0.00014794,2]
[338581882,1726747843179,-3671.15,0.00014794,2]
[338581885,1726747843190,-3671.15,0.00014794,2]
[338581888,1726747843200,-3671.15,0.00014794,2]
[338581891,1726747843210,-3671.15,0.00014794,2]
[338581893,1726747843220,-3671.15,0.00014794,2]
[338581896,1726747843230,-3671.15,0.00014794,2]
[338581899,1726747843239,-3671.15,0.00014794,2]
[338581901,1726747843249,-3671.15,0.00014794,2]
[338581903,1726747843258,-553.25,0.00014794,2]
[338581905,1726747843269,-3671.15,0.00014794,2]
[338581907,1726747843278,-553.25,0.00014794,2]
[338581909,1726747843288,-3671.15,0.00014794,2]
[338581911,1726747843297,-3671.15,0.00014794,2]
[338581913,1726747843306,-553.25,0.00014794,2]
[338581915,1726747843316,-3671.15,0.00014794,2]
[338581917,1726747843325,-553.25,0.00014794,2]
[338581919,1726747843335,-553.25,0.00014794,2]
[338581922,1726747843345,-3671.15,0.00014794,2]
[338581924,1726747843354,-553.25,0.00014794,2]
[338581926,1726747843363,-3671.15,0.00014794,2]
[338581928,1726747843373,-3671.15,0.00014794,2]
[338581929,1726747843385,-553.25,0.00014794,2]
[338581931,1726747843394,-3671.31,0.00014794,2]
[338581933,1726747843404,-553.25,0.00014794,2]
[338581935,1726747843414,-553.25,0.00014794,2]
[338581937,1726747843425,-553.25,0.00014794,2]
[338581939,1726747843435,-553.25,0.00014794,2]
[338581941,1726747843444,-157.387914,0.00014795,2]
[338581943,1726747843455,-881.9,0.00014799,2]
[338581945,1726747843465,-601.04,0.00014799,2]
[338581947,1726747843475,-601.04,0.00014799,2]
[338581950,1726747843487,-601.04,0.00014799,2]
[338581952,1726747843498,-601.04,0.00014799,2]
[338581953,1726747843507,-601.15727877,0.00014799,2]
[338581954,1726747843517,-1302.93,0.00014799,2]
[338581955,1726747843526,-1302.93,0.00014799,2]
[338581956,1726747843538,-1302.93,0.00014799,2]
[338581957,1726747843547,-1302.93,0.00014799,2]
[338581958,1726747843557,-1302.95,0.00014799,2]
[338581965,1726747843757,-537.31,0.00014799,2]
[338581967,1726747843766,-537.31,0.00014799,2]
[338581969,1726747843776,-537.31,0.00014799,2]
[338581971,1726747843785,-537.31,0.00014799,2]
[338581973,1726747843797,-537.41,0.00014799,2]
[338581975,1726747843807,-2086.73,0.00014799,2]
[338581977,1726747843817,-2086.73,0.00014799,2]
[338581979,1726747843827,-2086.73,0.00014799,2]
[338581981,1726747843836,-2086.73,0.00014799,2]
[338581983,1726747843845,-2086.80434596,0.00014799,2]
[338581986,1726747843854,-599.11,0.000148,2]
[338581989,1726747843864,-3000.0,0.000148,2]
[338581992,1726747843873,-309.0,0.000148,4]
[338581994,1726747843882,-223.0,0.000148,5]
[338581996,1726747843891,-800.0,0.000148,5]
[338581998,1726747843901,-201.0,0.0001482,2]
[338582000,1726747843910,-204.0,0.0001482,2]
[338582002,1726747843919,-500.0,0.00014879,2]
[338582004,1726747843928,-138352.3626917,0.0001488,2]
[338582006,1726747843937,-500.0,0.0001488,2]
[338582008,1726747843947,-500.0,0.0001488,2]
[338582010,1726747843956,-201.0,0.0001489,2]
[338582012,1726747843966,-1000.0,0.00014899,2]
[338582014,1726747843975,-783.544154,0.000149,2]
[338582016,1726747843984,-500.0,0.000149,2]
[338582018,1726747843994,-1228.28677326,0.000149,2]
[338582020,1726747844003,-1000.0,0.00014925,2]
[338582022,1726747844013,-456.4244,0.00014925,2]
[338582024,1726747844023,-162.11181118,0.00014959,2]
[338582026,1726747844034,-201.0,0.0001496,2]
[338582028,1726747844046,-204.0,0.0001496,2]
[338582030,1726747844055,-881.9,0.00014972,2]
[338582032,1726747844065,-881.9,0.00014972,2]
[338582034,1726747844074,-881.9,0.00014972,2]
[338582036,1726747844084,-881.9,0.00014972,2]
[338582038,1726747844093,-881.98,0.00014972,2]
[338582040,1726747844103,-150.0,0.00014973,2]
[338582042,1726747844112,-1703.6649496,0.0001499,2]
[338582044,1726747844122,-1420.0105129,0.0001499,2]
[338582046,1726747844131,-1136.3560762,0.0001499,2]
[338582048,1726747844141,-852.7016394,0.0001499,2]
[338582050,1726747844150,-569.0472027,0.0001499,2]
[338582051,1726747844161,-357.6579063,0.0001499,2]
[338582053,1726747844170,-357.6579063,0.0001499,2]
[338582056,1726747844180,-357.6579063,0.0001499,2]
[338582057,1726747844190,-357.6579063,0.0001499,2]
[338582060,1726747844200,-357.6579063,0.0001499,2]
[338582061,1726747844209,-727.4989845,0.0001499,2]
[338582063,1726747844218,-629.1751431,0.0001499,2]
[338582065,1726747844228,-530.8513016,0.0001499,2]
[338582067,1726747844238,-432.5274602,0.0001499,2]